fUSD/lending_fUSD_20250930
["ID","MTS","AMOUNT","RATE_DAILY","PERIOD"]
[388560843,1759241431625,-171.0,0.00017034,2]
[388560844,1759241431635,-500.0,0.00017034,2]
[388560845,1759241431645,-643.69401722,0.00017034,2]
[388560846,1759241431655,-15302.5049891,0.00017035,2]
[388560847,1759241431668,-1305.0,0.00017035,2]
[388560848,1759241431680,-381.50450315,0.00017035,2]
[388560849,1759241431692,-5852.88835788,0.00017035,2]
[388560850,1759241431704,-300.34751347,0.00017035,2]
[388560851,1759241431717,-951.31643728,0.00017035,2]
[388560852,1759241431774,-1499.99875991,0.00017035,2]
[388560853,1759241431785,-3758.87460846,0.00017035,2]
[388560854,1759241431796,-19836.01281104,0.00017035,2]
[388560855,1759241431835,-3932.18516204,0.00017035,2]
[388560856,1759241431848,-295.60861375,0.00017035,2]
[388560857,1759241431866,-1095.58800653,0.00017035,2]
[388560858,1759241431878,-1248.7535476,0.00017035,2]
[388560859,1759241431890,-1434.12,0.00017185,2]
[388560860,1759241431900,-500.0,0.00017185,2]
[388560861,1759241431910,-4832.51,0.00017185,2]
[388560862,1759241431919,-9999.99,0.00017185,2]
[388560863,1759241431928,-309.08,0.00017185,2]
[388560864,1759241431937,-999.99,0.00017185,2]
[388560865,1759241431946,-1510.66,0.00017185,2]
[388560866,1759241431955,-299.99,0.00017185,4]
[388560867,1759241431964,-1442.76,0.00017185,2]
[388560869,1759241431974,-304.94,0.00017185,2]
[388560870,1759241431984,-150.99,0.00017185,2]
[388560872,1759241431993,-150.99,0.00017185,2]
[388560874,1759241432002,-24432.17,0.00017185,2]
[388560876,1759241432012,-9999.99,0.00017185,2]
[388560878,1759241432021,-165.97161164,0.00017362,2]
[388560880,1759241432030,-2517.96390951,0.00017363,2]
[388560882,1759241432040,-165.97161164,0.00017366,2]
[388560884,1759241432049,-679.00016924,0.00017366,2]
[388560886,1759241432058,-1397.66434174,0.00017367,2]
[388560889,1759241432067,-2517.96390951,0.00017374,2]
[388560892,1759241432077,-679.00016924,0.00017375,2]
[388560894,1759241432086,-165.97161164,0.00017383,2]
[388560896,1759241432095,-200.8346732,0.00017384,2]
[388560898,1759241432105,-165.97161164,0.00017399,2]
[388560921,1759241432115,-1397.66434174,0.00017399,2]
[388560926,1759241432348,-165.97161164,0.000174,2]
[388560928,1759241432357,-200.8346732,0.00017402,2]
[388560931,1759241432371,-1397.66434174,0.00017406,2]
[388560933,1759241432380,-1397.66434174,0.00017408,2]
[388560934,1759241432389,-165.97161164,0.0001741,2]
[388560936,1759241432399,-200.8346732,0.00017419,2]
[388560937,1759241432408,-2517.96390951,0.00017424,2]
[388560938,1759241432417,-165.97161164,0.00017433,2]
[388560939,1759241432427,-679.00016924,0.00017438,2]
[388560940,1759241432436,-200.8346732,0.00017439,2]
[388560941,1759241432445,-2517.96390951,0.0001744,2]
[388560942,1759241432454,-164.73,0.00017457,2]
[388560943,1759241432464,-679.00016924,0.00017457,2]
[388560944,1759241432474,-1434.12,0.00017459,2]
[388560945,1759241432483,-1397.66434174,0.00017464,2]
[388560946,1759241432493,-200.8346732,0.00017466,2]
[388560947,1759241432502,-679.00016924,0.00017467,2]
[388560948,1759241432511,-200.8346732,0.00017469,2]
[388560949,1759241432520,-2517.96390951,0.00017472,2]
[388560950,1759241432529,-2517.96390951,0.00017476,2]
[388560951,1759241432538,-282.65,0.00017478,2]
[388560952,1759241432547,-283.68,0.00017478,2]
[388560953,1759241432556,-1397.66434174,0.00017478,2]
[388560954,1759241432565,-679.00016924,0.00017481,2]
[388560955,1759241432574,-200.8346732,0.00017481,2]
[388560956,1759241432583,-1397.66434174,0.00017482,2]
[388560957,1759241432593,-679.00016924,0.00017485,2]
[388560958,1759241432602,-2517.96390951,0.00017499,2]
[388560959,1759241432611,-150.0,0.00017507,2]
[388560960,1759241432620,-151.41267065,0.00017507,2]
[388560961,1759241432629,-150.0,0.00017507,2]
[388560962,1759241432638,-456.47,0.00017543,2]
[388560963,1759241432647,-150.0,0.000176,2]
[388560964,1759241432657,-150.0,0.00017661,7]
[388560965,1759241432666,-1434.12,0.00017733,2]
[388560966,1759241432676,-180.0,0.00017781,2]
[388560967,1759241432685,-400.0,0.00017878,2]
[388560968,1759241432694,-173.28,0.0001798,2]
[388560969,1759241432704,-240.23794355,0.00018,2]
[388560970,1759241432713,-1434.12,0.00018007,2]
[388560971,1759241432722,-1489.0,0.000181,2]
[388560972,1759241432732,-6246.10475525,0.00018181,7]
[388560973,1759241432742,-17798.749241,0.00018181,7]
[388560974,1759241432752,-7500.0,0.000182,2]
[388560975,1759241432761,-6764.2200815,0.000182,2]
[388560976,1759241432772,-1434.12,0.00018281,2]
[388560977,1759241432782,-177.25727578,0.00018302,2]
[388560978,1759241432791,-1300.0,0.00018336,2]
[388560979,1759241432801,-443.44,0.00018368,2]
[388560980,1759241432810,-160.0,0.00018403,2]
[388560981,1759241432819,-322.6107,0.00018403,2]
[388560982,1759241432828,-601.3376128,0.00018403,2]
[388560983,1759241432837,-500.0,0.00018403,2]
[388560984,1759241432847,-500.0,0.00018403,2]
[388560985,1759241432855,-500.0,0.00018403,2]
[388560986,1759241432865,-500.0,0.00018403,2]
[388560987,1759241432874,-500.0,0.00018403,2]
[388560988,1759241432883,-500.0,0.00018403,2]
[388560989,1759241432892,-500.0,0.00018403,2]
[388560990,1759241432902,-500.0,0.00018403,2]
[388560991,1759241432912,-370.49628111,0.00018403,2]
[388560992,1759241432925,-129.50371889,0.00018403,2]
[388560993,1759241432934,-578.20924308,0.00018403,2]
[388560994,1759241432943,-500.0,0.00018403,2]
[388560995,1759241432952,-500.0,0.00018403,2]
[388560996,1759241432962,-500.0,0.00018403,2]
[388560997,1759241432971,-101.0315552,0.00018403,2]
[388561007,1759241437466,-398.9684448,0.00018403,2]
[388561008,1759241437476,-500.0,0.00018403,2]
[388561009,1759241437490,-500.0,0.00018403,2]
[388561010,1759241437500,-500.0,0.00018403,2]
[388561011,1759241437509,-500.0,0.00018403,2]
[388561012,1759241437518,-500.0,0.00018403,2]
[388561013,1759241437528,-500.0,0.00018403,2]
[388561014,1759241437537,-500.0,0.00018403,2]
[388561015,1759241437547,-500.0,0.00018403,2]
[388561016,1759241437556,-500.0,0.00018403,2]
[388561017,1759241437566,-500.0,0.00018403,2]
[388561018,1759241437576,-500.0,0.00018403,2]
[388561019,1759241437585,-500.0,0.00018403,2]
[388561051,1759241438013,-500.0,0.00018403,2]
[388561054,1759241438035,-500.0,0.00018403,2]
[388561056,1759241438045,-500.0,0.00018403,2]
[388561058,1759241438054,-500.0,0.00018403,2]
[388561059,1759241438065,-500.0,0.00018403,2]
[388561061,1759241438074,-500.0,0.00018403,2]
[388561062,1759241438083,-500.0,0.00018403,2]
[388561064,1759241438093,-231.28369723,0.00018403,2]
[388561066,1759241438103,-420.0,0.00018497,2]
[388561068,1759241438113,-474.52590314,0.00018541,2]
[388561070,1759241438122,-1434.12,0.00018555,2]
[388561072,1759241438131,-1680.0,0.00018589,2]
[388561074,1759241438141,-195.0,0.00018627,2]
[388561076,1759241438150,-2000.0,0.00018627,2]
[388561077,1759241438160,-500.0,0.00018627,2]
[388561079,1759241438169,-195.0,0.00018627,2]
[388561081,1759241438179,-250.0,0.00018627,2]
[388561084,1759241438190,-566.75,0.0001863,2]
[388561086,1759241438199,-177.25727574,0.00018633,2]
[388561088,1759241438209,-2500.0,0.0001873,3]
[388561090,1759241438219,-2500.0,0.00018739,3]
[388561092,1759241438232,-2500.0,0.00018748,3]
[388561094,1759241438241,-2500.0,0.00018757,3]
[388561096,1759241438251,-2500.0,0.00018766,3]
[388561097,1759241438260,-600.0,0.00018772,2]
[388561098,1759241438270,-2500.0,0.00018774,3]
[388561099,1759241438280,-150.0,0.0001878,2]
[388561100,1759241438289,-2500.0,0.00018783,3]
[388561101,1759241438299,-2500.0,0.00018792,3]
[388561102,1759241438308,-1000.0,0.00018798,2]
[388561103,1759241438318,-2500.0,0.00018798,2]
[388561104,1759241438328,-2500.0,0.00018801,3]
[388561105,1759241438338,-2500.0,0.0001881,3]
[388561106,1759241438349,-2500.0,0.00018818,3]
[388561107,1759241438359,-167.73871355,0.00018824,2]
[388561108,1759241438368,-152.18539397,0.00018824,2]
[388561109,1759241438378,-163.69710697,0.00018824,2]
[388561110,1759241438387,-2500.0,0.00018827,3]
[388561111,1759241438396,-1434.12,0.00018829,2]
[388561112,1759241438406,-2500.0,0.00018836,3]
[388561113,1759241438417,-2500.0,0.00018845,3]
[388561114,1759241438427,-580.06336476,0.00018853,2]
[388561116,1759241438436,-2500.0,0.00018854,3]
[388561118,1759241438445,-2500.0,0.00018862,3]
[388561120,1759241438455,-202.21,0.00018867,2]
[388561122,1759241438464,-2500.0,0.00018871,3]
[388561124,1759241438473,-2500.0,0.0001888,3]
[388561126,1759241438484,-2500.0,0.00018889,3]
[388561128,1759241438494,-2500.0,0.00018898,3]
[388561130,1759241438503,-1000.0,0.000189,2]
[388561132,1759241438513,-33330.1916,0.000189,2]
[388561134,1759241438522,-1668.09163838,0.000189,2]
[388561136,1759241438532,-2500.0,0.00018906,3]
[388561138,1759241438542,-2500.0,0.00018915,3]
[388561140,1759241438551,-111312.96605006,0.00018922,2]
[388561159,1759241439352,-1877.11244214,0.00018922,2]
[388561160,1759241439373,-285.500002,0.00018922,2]
[388561205,1759241440277,-495.621193,0.00018922,2]
[388561210,1759241440316,-2360.04122409,0.00018922,2]
[388561212,1759241440331,-5662.0,0.00018922,2]
[388561214,1759241440342,-2081.53297067,0.00018922,2]
[388561217,1759241440354,-2117.8,0.00018922,2]
[388561219,1759241440370,-10287.77741002,0.00018922,2]
[388561221,1759241440381,-817.68834929,0.00018922,2]
[388561223,1759241440393,-3125.49190937,0.00018922,2]
[388561226,1759241440404,-2450.08099561,0.00018922,2]
[388561228,1759241440415,-5652.26343475,0.00018922,2]
[388561241,1759241443088,-13745.63285325,0.00018922,2]
[388561242,1759241443099,-297.0442158,0.00018922,2]
[388561251,1759241446095,-10758.13422629,0.00018922,2]
[388561252,1759241446136,-1032.32208411,0.00018922,2]
[388561253,1759241446147,-2197.61118149,0.00018922,2]
[388561254,1759241446158,-2001.15087303,0.00018922,2]
[388561262,1759241860431,5000.0,0.00025,60]
[388561263,1759241860808,163.402179,0.000169,2]
[388561264,1759241914377,160.19,8.662e-05,2]
[388561267,1759241978296,5000.0,0.000177,30]
[388561268,1759242000985,-456.47,0.00026314,120]
[388561269,1759242001094,-150.0,0.00028504,120]
[388561270,1759242001169,-150.0,0.00028512,120]
[388561271,1759242001244,-150.0,0.00028712,120]
[388561272,1759242001324,-150.0,0.00028842,120]
[388561273,1759242001407,-150.0,0.00029029,120]
[388561274,1759242001491,-150.0,0.00029058,120]
[388561275,1759242001576,-150.0,0.00029072,120]
[388561276,1759242001658,-150.0,0.00029223,120]
[388561277,1759242001740,-150.0,0.00029241,120]
[388561278,1759242001821,-150.0,0.00029346,120]
[388561279,1759242001903,-150.0,0.00029743,120]
[388561280,1759242001985,-150.0,0.00029761,120]
[388561281,1759242002064,-150.0,0.00029896,120]
[388561282,1759242002140,-150.0,0.00029987,120]
[388561284,1759242002607,-164.25292398,0.0003,120]
[388561285,1759242002707,-2196.62623769,0.0003,120]
[388561286,1759242002789,-150.0,0.0003,120]
[388561287,1759242002867,-274.75171107,0.000301,120]
[388561288,1759242002952,-701.41042292,0.0003013,120]
[388561289,1759242003042,-1731.0,0.00030136,120]
[388561291,1759242004346,522.58,0.00025983,120]
[388561292,1759242007489,-384.6879114,0.00033074,120]
[388561293,1759242007589,-1172.9,0.00033074,120]
[388561294,1759242007676,-1172.9,0.00033074,120]
[388561295,1759242007764,-1172.9,0.00033074,120]
[388561296,1759242007852,-1172.9,0.00033074,120]
[388561297,1759242007941,-1172.9,0.00033074,120]
[388561298,1759242008027,-1172.9,0.00033074,120]
[388561299,1759242008110,-1172.9,0.00033074,120]
[388561300,1759242008194,-1172.9,0.00033074,120]
[388561301,1759242008268,-1172.9,0.00033074,120]
[388561302,1759242008349,-1172.9,0.00033074,120]
[388561303,1759242008433,-1172.9,0.00033074,120]
[388561304,1759242008517,-1172.9,0.00033074,120]
[388561305,1759242008605,-1172.9,0.00033074,120]
[388561308,1759242008704,-1172.9,0.00033074,120]
[388561309,1759242008791,-1172.9,0.00033074,120]
[388561311,1759242008876,-1172.9,0.00033074,120]
[388561313,1759242008962,-1172.9,0.00033074,120]
[388561314,1759242009052,-1172.9,0.00033074,120]
[388561316,1759242009138,-1172.9,0.00033074,120]
[388561317,1759242009226,-1172.9,0.00033074,120]
[388561318,1759242009315,-1172.9,0.00033074,120]
[388561319,1759242009405,-1172.9,0.00033074,120]
[388561320,1759242009495,-1172.9,0.00033074,120]
[388561321,1759242009585,-1172.98103381,0.00033074,120]
[388561322,1759242009674,-1065.74,0.00033074,120]
[388561323,1759242009763,-1065.74,0.00033074,120]
[388561324,1759242009853,-1065.74,0.00033074,120]
[388561325,1759242009941,-1065.74,0.00033074,120]
[388561326,1759242010027,-1065.74,0.00033074,120]
[388561327,1759242010119,-1065.74,0.00033074,120]
[388561328,1759242010216,-1065.74,0.00033074,120]
[388561329,1759242010303,-1065.74,0.00033074,120]
[388561330,1759242010392,-1065.74,0.00033074,120]
[388561331,1759242010482,-1065.74,0.00033074,120]
[388561332,1759242010574,-1065.74,0.00033074,120]
[388561333,1759242010664,-1065.74,0.00033074,120]
[388561334,1759242010754,-1065.74,0.00033074,120]
[388561335,1759242010846,-1065.74,0.00033074,120]
[388561336,1759242010937,-1065.74,0.00033074,120]
[388561337,1759242011025,-1065.74,0.00033074,120]
[388561338,1759242011111,-1065.74,0.00033074,120]
[388561339,1759242011197,-1065.74,0.00033074,120]
[388561340,1759242011284,-1065.74,0.00033074,120]
[388561341,1759242011369,-1065.74,0.00033074,120]
[388561342,1759242011454,-1065.74,0.00033074,120]
[388561343,1759242011546,-1065.74,0.00033074,120]
[388561344,1759242011636,-1065.74,0.00033074,120]
[388561345,1759242011718,-1065.74901016,0.00033074,120]
[388561346,1759242011800,-410.57943723,0.00033074,120]
[388561347,1759242011885,-1115.24743841,0.00033074,120]
[388561348,1759242011973,-842.73,0.00033074,120]
[388561349,1759242012060,-842.73,0.00033074,120]
[388561350,1759242012153,-842.73,0.00033074,120]
[388561351,1759242012246,-842.73,0.00033074,120]
[388561352,1759242012333,-842.73,0.00033074,120]
[388561353,1759242012421,-842.73,0.00033074,120]
[388561354,1759242012508,-842.73,0.00033074,120]
[388561355,1759242012593,-842.73,0.00033074,120]
[388561356,1759242012678,-842.73,0.00033074,120]
[388561357,1759242012761,-842.73,0.00033074,120]
[388561358,1759242012848,-842.73,0.00033074,120]
[388561359,1759242012937,-842.73,0.00033074,120]
[388561360,1759242013020,-842.73,0.00033074,120]
[388561361,1759242013105,-842.73,0.00033074,120]
[388561362,1759242013692,-842.73,0.00033074,120]
[388561363,1759242013775,-842.73,0.00033074,120]
[388561364,1759242013858,-842.73,0.00033074,120]
[388561365,1759242013942,-842.73,0.00033074,120]
[388561366,1759242014021,-842.73,0.00033074,120]
[388561367,1759242014105,-842.73,0.00033074,120]
[388561368,1759242014188,-842.73,0.00033074,120]
[388561369,1759242014284,-842.73,0.00033074,120]
[388561370,1759242014373,-842.73,0.00033074,120]
[388561371,1759242014453,-842.79,0.00033074,120]
[388561372,1759242014536,-1120.66,0.00033074,120]
[388561373,1759242014619,-1120.66,0.00033074,120]
[388561374,1759242014698,-1120.66,0.00033074,120]
[388561375,1759242014777,-1120.66,0.00033074,120]
[388561376,1759242014855,-1120.66,0.00033074,120]
[388561377,1759242014935,-1120.66,0.00033074,120]
[388561378,1759242015011,-1120.66,0.00033074,120]
[388561379,1759242015091,-1120.66,0.00033074,120]
[388561380,1759242015177,-1120.66,0.00033074,120]
[388561381,1759242015256,-1120.66,0.00033074,120]
[388561382,1759242015341,-1120.66,0.00033074,120]
[388561383,1759242015423,-1120.66,0.00033074,120]
[388561384,1759242015501,-1120.66,0.00033074,120]
[388561385,1759242015578,-1120.66,0.00033074,120]
[388561386,1759242015654,-1120.66,0.00033074,120]
[388561387,1759242015728,-1120.66,0.00033074,120]
[388561388,1759242015807,-1120.66,0.00033074,120]
[388561389,1759242015887,-1120.66,0.00033074,120]
[388561390,1759242015969,-1120.66,0.00033074,120]
[388561391,1759242016047,-1120.66,0.00033074,120]
[388561392,1759242016128,-1120.66,0.00033074,120]
[388561393,1759242016212,-1120.66,0.00033074,120]
[388561394,1759242016297,-1120.66,0.00033074,120]
[388561395,1759242016379,-1120.72,0.00033074,120]
[388561396,1759242016463,-1251.53676168,0.00033074,120]
[388561397,1759242016549,-5000.0,0.00033074,120]
[388561398,1759242016634,-5000.0,0.00033074,120]
[388561399,1759242016719,-71268.57926026,0.00033074,120]
[388561400,1759242016803,-15000.0,0.00033074,120]
[388561401,1759242016884,-1586822.0,0.00033074,90]
[388561402,1759242016962,-1000000.0,0.00033074,60]
[388561403,1759242017037,-400.0,0.00033074,120]
[388561404,1759242017113,-400.0,0.00033074,120]
[388561405,1759242017191,-400.0,0.00033074,120]
[388561406,1759242017272,-400.0,0.00033074,120]
[388561407,1759242017348,-400.0,0.00033074,120]
[388561408,1759242017423,-400.0,0.00033074,120]
[388561409,1759242017498,-400.0,0.00033074,120]
[388561410,1759242017575,-400.0,0.00033074,120]
[388561411,1759242017660,-400.0,0.00033074,120]
[388561412,1759242017737,-400.0,0.00033074,120]
[388561413,1759242017819,-400.0,0.00033074,120]
[388561414,1759242017906,-400.0,0.00033074,120]
[388561415,1759242017986,-400.0,0.00033074,120]
[388561416,1759242018065,-179.18,0.00033074,120]
[388561417,1759242018140,-695.0,0.00033074,120]
[388561418,1759242018215,-400.0,0.00033074,120]
[388561419,1759242018292,-400.0,0.00033074,120]
[388561420,1759242018368,-400.0,0.00033074,120]
[388561421,1759242018453,-400.0,0.00033074,120]
[388561422,1759242018531,-400.0,0.00033074,120]
[388561423,1759242018612,-400.0,0.00033074,120]
[388561424,1759242018689,-289.59,0.00033074,120]
[388561425,1759242018768,-400.0,0.00033074,120]
[388561426,1759242018848,-405.61,0.00033074,120]
[388561427,1759242018931,-237.91816111,0.00033074,120]
[388561428,1759242019010,-700.820804,0.00033074,120]
[388561429,1759242019091,-10264.84539592,0.00033074,120]
[388561430,1759242019177,-3000.0,0.00033074,120]
[388561431,1759242019258,-2798.0,0.00033074,62]
[388561432,1759242019338,-42134.01404994,0.00033074,120]
[388561433,1759242019418,-32282.0977099,0.00033074,120]
[388561434,1759242019497,-68411.32190221,0.00033074,60]
[388561435,1759242019578,-12059.26559106,0.00033074,120]
[388561436,1759242019662,-31440.77553291,0.00033074,60]
[388561437,1759242036188,151.0,0.00030137,120]
[388561438,1759242039044,-8559.22446709,0.00033074,60]
[388561439,1759242039121,-50052.0,0.00033074,120]
[388561440,1759242039199,-500.0,0.00033074,120]
[388561441,1759242039283,-312.95756712,0.00033074,120]
[388561442,1759242039366,-292.79389212,0.00033074,60]
[388561443,1759242039451,-20239.66303693,0.00033074,120]
[388561444,1759242039536,-2532.44443804,0.00033074,120]
[388561445,1759242039620,-14545.9146131,0.00033074,120]
[388561446,1759242039703,-6978.9498482,0.00033074,120]
[388561447,1759242039784,-400.0,0.00033074,120]
[388561448,1759242039861,-400.0,0.00033074,120]
[388561449,1759242039932,-400.0,0.00033074,120]
[388561450,1759242040004,-1647.04123045,0.00033074,120]
[388561451,1759242040079,-10290.24268441,0.00033074,120]
[388561452,1759242040153,-3347.45102951,0.00033074,120]
[388561453,1759242040231,-5644.71111309,0.00033074,120]
[388561454,1759242040324,-58000.0,0.00033074,120]
[388561455,1759242040397,-10746.22339691,0.00033074,120]
[388561456,1759242040470,-4644.38640266,0.00033074,120]
[388561457,1759242040548,-1500.0,0.00033074,80]
[388561458,1759242040627,-2022.14,0.00033074,120]
[388561459,1759242040716,-156.55368098,0.00033074,120]
[388561460,1759242040810,-345.29691122,0.00033074,120]
[388561461,1759242041490,-2784.11967495,0.00033074,120]
[388561462,1759242041572,-2098.87305935,0.00033074,120]
[388561463,1759242041650,-200.0,0.00033074,120]
[388561464,1759242041729,-2298.13003274,0.00033074,60]
[388561465,1759242051957,5000.0,0.000169,2]
[388561466,1759242058416,200.0,0.00033074,120]
[388561469,1759242135925,500.0,0.00033074,120]
[388561470,1759242136189,312.95756712,0.00033074,120]
[388561471,1759242169545,5000.0,0.000177,30]
[388561474,1759242202042,510.383655,0.00025851,120]
[388561475,1759242224587,24000.0,0.00032983,120]
[388561477,1759242247688,156.55368098,0.00032983,120]
[388561478,1759242248089,163.10736196,0.00032983,120]
[388561479,1759242260853,292.79389212,0.00032983,60]
[388561480,1759242272050,5000.0,0.00017,10]
[388561481,1759242298383,98531.922763,0.00032983,120]
[388561482,1759242316414,435.56714104,0.00032983,120]
[388561483,1759242334024,701.41042292,0.0003013,120]
[388561484,1759242344943,1251.85334829,0.00032983,120]
[388561485,1759242348772,5000.0,0.000169,2]
[388561486,1759242356917,200.0,0.00032983,120]
[388561495,1759242381831,11000.0,0.00032983,60]
[388561496,1759242413913,17879.8586566,0.000169,2]
[388561497,1759242423609,9000.0,0.00032983,60]
[388561498,1759242428092,186.52877473,0.00032983,120]
[388561499,1759242457512,20000.0,0.00032983,60]
[388561500,1759242465751,164.25292398,0.0003,120]
[388561501,1759242466729,2098.87305935,0.00032983,120]
[388561502,1759242472915,4500.0,0.00016601,2]
[388561503,1759242475632,438.47772452,0.00032983,120]
[388561504,1759242486139,5100.0,0.00032983,60]
[388561506,1759242507073,703.80579749,0.00032983,120]
[388561507,1759242511352,2500.0,0.00016601,2]
[388561509,1759242514062,2196.62623769,0.0003,120]
[388561510,1759242518389,670.0,0.00032983,60]
[388561516,1759242521627,247.3707557,0.00032983,120]
[388561518,1759242522594,27538.38319713,0.00032983,120]
[388561519,1759242524980,2500.0,0.00016601,2]
[388561520,1759242531093,19000.0,0.00032983,60]
[388561521,1759242533168,55263.03,0.00032983,60]
[388561523,1759242574533,2399.94904484,0.00016601,2]
[388561524,1759242591179,40000.0,0.00032983,60]
[388561525,1759242598890,164.73,0.00015966,2]
[388561564,1759242631703,-250.0,0.00016696,2]
[388561568,1759242631719,-228.93,0.00016755,2]
[388561571,1759242631728,-170.36461302,0.00016814,2]
[388561573,1759242631739,-168.47327152,0.000169,2]
[388561575,1759242631749,-231.61090494,0.000169,2]
[388561577,1759242631759,-152.18539396,0.000169,2]
[388561579,1759242631768,-242.6874023,0.000169,2]
[388561581,1759242631778,-25.41421483,0.00016902,2]
[388561584,1759242631795,-206.19669002,0.00016902,2]
[388561586,1759242631805,-152.18539396,0.00016902,2]
[388561588,1759242631816,-168.47327152,0.00016903,2]
[388561590,1759242631825,-231.61090485,0.00016903,2]
[388561592,1759242631835,-152.18539396,0.00016904,2]
[388561594,1759242631845,-231.61090485,0.00016905,2]
[388561596,1759242631855,-168.47327152,0.00016906,2]
[388561598,1759242631865,-152.18539396,0.00016906,2]
[388561600,1759242631875,-231.61090485,0.00016906,2]
[388561602,1759242631885,-231.61090485,0.00016908,2]
[388561604,1759242631894,-152.18539396,0.00016908,2]
[388561606,1759242631904,-168.47327152,0.00016908,2]
[388561608,1759242631914,-231.61090485,0.00016909,2]
[388561610,1759242631924,-152.18539396,0.0001691,2]
[388561613,1759242631935,-231.61090485,0.00016911,2]
[388561615,1759242631945,-168.47327152,0.00016911,2]
[388561617,1759242631955,-152.18539396,0.00016912,2]
[388561619,1759242631965,-231.61090485,0.00016912,2]
[388561621,1759242631974,-168.47327152,0.00016914,2]
[388561623,1759242631984,-231.61090485,0.00016914,2]
[388561625,1759242631994,-152.18539396,0.00016914,2]
[388561627,1759242632005,-1200.0,0.00016972,2]
[388561629,1759242632014,-159.967424,0.00016973,2]
[388561631,1759242632023,-500.0,0.00016973,2]
[388561633,1759242632032,-503.12032101,0.00016973,2]
[388561634,1759242632042,-500.0,0.00016973,2]
[388561637,1759242632052,-562.04177734,0.0001699,2]
[388561638,1759242632062,-562.04177734,0.0001699,2]
[388561640,1759242632072,-410.77987489,0.0001699,2]
[388561644,1759242632117,-151.26190245,0.0001699,2]
[388561646,1759242632126,-315.50844232,0.00016999,2]
[388561648,1759242632138,-90.53591301,0.00016999,2]
[388561650,1759242632147,-291.32,0.00016999,4]
[388561652,1759242632158,-84.91330627,0.00016999,2]
[388561658,1759242632227,-816.0,0.00016999,2]
[388561660,1759242632239,-666.0,0.00016999,2]
[388561662,1759242632250,-553.402179,0.00016999,2]
[388561664,1759242632262,-2139.6062872,0.00016999,2]
[388561666,1759242632273,-1229.80822753,0.00016999,2]
[388561667,1759242632283,-17.47177241,0.00016999,2]
[388561668,1759242632355,-6716.14822759,0.00016999,2]
[388561669,1759242632367,-300.0,0.00016999,2]
[388561670,1759242632376,-999.99,0.00017,2]
[388561671,1759242632386,-150.99,0.00017,2]
[388561672,1759242632395,-11880.91717243,0.00017,2]
[388561685,1759242636222,12000.0,0.00033079,60]
[388561686,1759242637617,-356.37368269,0.00017,2]
[388561687,1759242637651,-715.61401512,0.00017,2]
[388561688,1759242637663,-4396.90107362,0.00017,2]
[388561689,1759242637675,-2785.63913308,0.00017,2]
[388561690,1759242637687,-294.22488331,0.00017,2]
[388561691,1759242637698,-10734.40716334,0.00017,2]
[388561692,1759242637793,-1720.61193751,0.00017,2]
[388561693,1759242637804,-280.71648161,0.00017,2]
[388561694,1759242637837,-519.28351839,0.00017,2]
[388561695,1759242637863,-3750.24,0.00017,2]
[388561696,1759242637908,-472.054999,0.00017,2]
[388561697,1759242637919,-406.64253907,0.00017,2]
[388561698,1759242637931,-511.57789757,0.00017,2]
[388561699,1759242637942,-566.925,0.00017,2]
[388561700,1759242637955,-5568.49458015,0.00017,2]
[388561701,1759242637966,-946.81894517,0.00017,2]
[388561702,1759242638000,-1571949.54740583,0.00017,2]
[388561703,1759242638011,-7267812.66322627,0.00017,2]
[388561704,1759242638032,-33718.77188994,0.00017,2]